Cogmind - Beta 15 @@@ ROGUE MODE // 2025.07.14 @ 02:09:30 Player: biznut Result: Destroyed by Y-45 Defender with Beam Rifle Performance ------------- Evolutions (2) 1000 Regions Visited (3) 600 Robots Destroyed (15) 75 Value Destroyed (361) 361 Prototype IDs (0) 0 Alien Tech Used (0) 0 Bonus (0) 0 TOTAL SCORE: 2036 Bonus ------- None Cogmind --------- Core Integrity 0/550 Matter 120/300 Energy 100/100 System Corruption 0% Temperature Cool (9) Movement Core (50) Location -8/Materials Parts ------- > --- POWER (2) -------- (None) > --- PROPULSION (4) --- (None) > --- UTILITY (3) ------ (None) > --- WEAPON (2) ------- (None) > --- INVENTORY (5) ---- Ion Engine Improved Treads Shield Generator Light EM Pulse Cannon Minigun Peak State ------------ > --- POWER ------------ Ion Engine > --- PROPULSION ------- Improved Treads Improved Treads Improved Treads Improved Treads > --- UTILITY ---------- Small Storage Unit Improved Targeting Computer > --- WEAPON ----------- Light Assault Rifle Shotgun > --- INVENTORY -------- Ion Engine Light Ion Engine Light Ion Engine Improved Treads Improved Treads Aluminum Leg Terrain Scanner Welding Torch [Rating: 16] Favorites ----------- Power Ion Engine Engine Ion Engine Propulsion Aluminum Leg Treads Improved Treads Leg Aluminum Leg Utility Small Storage Unit Device Terrain Scanner Storage Small Storage Unit Processor Improved Targeting Computer Protection Light Armor Plating Weapon Light Assault Rifle Energy Gun EM Pulse Gun Energy Cannon Light EM Pulse Cannon Ballistic Gun Light Assault Rifle Special Weapon Welding Torch Build | -11 -10 -9 -8 ------- Run | Yrd Mat Mat Mat Slots Evolved 4 | . . 2 2 Power 1 | . . . 1 Propulsion 2 | . . 2 . Utility 1 | . . . 1 Weapon . | . . . . Parts Attached 29 | 6 5 10 8 Power 4 | 1 2 . 1 Engine 4 | 1 2 . 1 Core . | . . . . Reactor . | . . . . Propulsion 12 | 2 1 8 1 Treads 5 | . . 4 1 Leg 7 | 2 1 4 . Wheel . | . . . . Hover . | . . . . Flight . | . . . . Utility 5 | 1 1 1 2 Device 2 | . 1 . 1 Storage 1 | 1 . . . Processor 1 | . . 1 . Hackware . | . . . . Protection 1 | . . . 1 Artifact . | . . . . Weapon 8 | 2 1 1 4 Energy Gun 1 | 1 . . . Energy Cannon 1 | . . . 1 Ballistic Gun 5 | 1 1 1 2 Ballistic Cannon . | . . . . Launcher . | . . . . Special Weapon 1 | . . . 1 Impact Weapon . | . . . . Slashing Weapon . | . . . . Piercing Weapon . | . . . . Special Melee Weapon . | . . . . Unidentified Prototypes . | . . . . Parts Lost 4 | . 3 1 . Power 1 | . 1 . . Propulsion 2 | . 1 1 . Utility . | . . . . Weapon 1 | . 1 . . Highest Loss Streak 3 | . 3 1 . To Critical Strikes . | . . . . Average Backups 4 | 1 3 7 3 Power 1 | . 1 2 . Propulsion . | . . 1 . Utility . | . . . 1 Weapon . | . . 1 . Tool/Special . | . . . . Unused Backups 3 | . . 3 . Power 1 | . . 1 . Propulsion 1 | . . 1 . Utility . | . . . . Weapon 1 | . . 1 . Tool/Special . | . . . . Average Slot Usage (%) 75 | . 87 86 22 Engine 11 | . 14 10 6 Treads 4 | . . 13 2 Leg 20 | . 27 22 . Device 2 | . 3 1 4 Storage 10 | . 14 10 . Processor 2 | . . 8 . Energy Gun 4 | . 8 . . Ballistic Gun 16 | . 18 19 3 Peak Build Rating 16 | 6 7 16 11 Average Rating 6 | 4 6 10 3 On Entrance 3 | . 6 7 . Naked Turns 103 | . . 23 80 Heaviest Build 18 | 13 13 14 18 Greatest Support 92 | 20 20 92 23 Greatest Overweight (x) 2 | 1 1 . 2 Average Overweight (x) . | . . . . Largest Inventory Capacity 8 | 8 8 8 5 Average Capacity 7 | 6 8 7 5 Most Carried 8 | 2 6 8 5 Average Carried 4 | 1 3 7 3 Final Capacity 8 | 8 8 5 5 Final Carried 6 | 2 6 5 5 Class Distribution -------------------- 93% | Mutant 6% | Scavenger-Mutant Dominant Class ---------------- Mutant | -10/Materials Mutant | -9/Materials Mutant | -8/Materials Resources | -11 -10 -9 -8 ----------- Run | Yrd Mat Mat Mat Matter Collected 395 | 207 116 72 . Remotely . | . . . . Salvage Created 406 | . 307 99 . Parts 30 | . 22 8 . Haulers Intercepted . | . . . . Recyclers Shooed . | . . . . Parts Field Recycled . | . . . . Retrieved Matter . | . . . . Parts Self-Destructed . | . . . . Prevented . | . . . . Kills | -11 -10 -9 -8 ------- Run | Yrd Mat Mat Mat Combat Hostiles Destroyed 14 | . 9 5 . Guns 12 | . 7 5 . AOE 2 | . 2 . . Classes Destroyed 3 | . 3 . . Watcher 1 | . 1 . . Swarmer 6 | . 3 3 . Grunt 8 | . 6 2 . Best Kill Streak 4 | . 4 3 . Combat Bots Only 4 | . 4 3 . Max Kills in Single Turn 2 | . 2 1 . Gunslinging . | . . . . Exploded 2 | . 2 . . Melee . | . . . . Uniques/NPCs Destroyed . | . . . . Combat | -11 -10 -9 -8 -------- Run | Yrd Mat Mat Mat Hostile Shots Fired 271 | . 67 125 79 Missed 86 | . 22 34 30 Hits 185 | . 45 91 49 Melee 6 | . . 6 . Projectile 179 | . 45 85 49 Critical Strikes 5 | . . 3 2 Damage Taken 2175 | . 480 972 723 Core 925 | . 100 262 563 Absorbed by Shields 46 | . . . 46 Regen/Repaired (Parts) 16 | . 16 . . Core Remaining (%) 64 | 100 60 34 . Volleys Fired 47 | . 30 17 . Largest 2 | . 2 2 . Hottest 60 | . 60 43 . Shots Fired 85 | . 51 34 . Gun 85 | . 51 34 . Cannon . | . . . . Launcher . | . . . . Special . | . . . . Kinetic 70 | . 36 34 . Thermal . | . . . . Explosive . | . . . . Electromagnetic 15 | . 15 . . Robot Hit Streak 9 | . 6 9 . Robot Miss Streak 5 | . 2 5 . Penetration Max . | . . . . Secondary Targets . | . . . . Shots Hit Robots 54 | . 33 21 . Core Hits 27 | . 19 8 . Critical Kills . | . . . . Critical Parts Destroyed 1 | . . 1 . Critical Strikes 1 | . . 1 . Destroy 1 | . . 1 . Melee Attacks . | . . . . Impact . | . . . . Slashing . | . . . . Piercing . | . . . . Sneak Attacks . | . . . . Combat Hostiles . | . . . . Follow-up Attacks . | . . . . Damage Inflicted 755 | . 496 247 12 Guns 554 | . 317 237 . Cannons . | . . . . Explosions 167 | . 167 . . Melee . | . . . . Ramming 34 | . 12 10 12 Kinetic 415 | . 178 237 . Thermal 167 | . 167 . . Explosive . | . . . . Electromagnetic 139 | . 139 . . Impact . | . . . . Slashing . | . . . . Piercing . | . . . . Highest Corruption 2 | . . 2 . Average Corruption 2 | . . 2 . Corruption Purged . | . . . . Corruption Blocked . | . . . . Overload Shots . | . . . . Overflow Damage . | . . . . Projectiles . | . . . . Explosions . | . . . . Melee . | . . . . Knockbacks 2 | . . 2 . Impact 2 | . . 2 . Kinetic . | . . . . Secondary . | . . . . Self-Inflicted Damage 9 | . . 5 4 Shots . | . . . . Rammed 7 | . . 4 3 Targets Rammed 13 | . 6 4 3 Kicked 6 | . 6 . . Crushed . | . . . . Highest Temperature 67 | . 67 10 . Average Temperature 17 | . 20 5 . Received Heat Transfer 588 | . 201 186 201 Siege Activations . | . . . . Martial Activations . | . . . . Shielding Activations . | . . . . Robots Disrupted . | . . . . Combat Hostiles . | . . . . Robots Corrupted . | . . . . Combat Hostiles . | . . . . Parts Fried 1 | . 1 . . Impact Corruptions . | . . . . Robots Melted . | . . . . Combat Hostiles . | . . . . Parts Melted . | . . . . Heat Transferred 150 | . 150 . . Parts Sabotaged . | . . . . Parts Stolen . | . . . . Parts Stripped . | . . . . Power Chain Reactions 1 | . 1 . . Alert | -11 -10 -9 -8 ------- Run | Yrd Mat Mat Mat Maximum Alert Level . | . . . . Low Security (%) 100 | 100 100 100 100 Level 1 . | . . . . Level 2 . | . . . . Level 3 . | . . . . Level 4 . | . . . . Level 5 . | . . . . High Security . | . . . . Max Security . | . . . . Peak Influence 159 | . 159 70 50 Initial 44 | . . 44 12 Average 44 | . 68 28 17 Influence Increases 491 | . 306 110 75 Destroy 0b10 Robot/C 280 | . 180 100 . Destroy 0b10 Robot/NC 5 | . 5 . . Destroy Leader 52 | . 42 10 . Destroy Structure 4 | . 4 . . Lose Combat Pursuer 150 | . 75 . 75 Influence Decreases 456 | . 199 187 70 Entered New Map 81 | . . 63 18 Time Decay 335 | . 169 114 52 Lost Part 40 | . 30 10 . Squads Dispatched 3 | . 3 . . Investigation 3 | . 3 . . Extermination . | . . . . Reinforcement . | . . . . Assault . | . . . . Garrison . | . . . . Intercept . | . . . . Searches Triggered . | . . . . Construction Impeded . | . . . . Haulers Reinforced . | . . . . Active Scanning Responses . | . . . . Cargo Convoy Interrupts . | . . . . Stealth | -11 -10 -9 -8 --------- Run | Yrd Mat Mat Mat Distress Signals . | . . . . Communications Jammed . | . . . . Distress Signals . | . . . . Times Spotted 50 | . 19 15 16 Peak Tracking Total 11 | . 4 9 11 Tactical Retreats 5 | . 3 . 2 Traps | -11 -10 -9 -8 ------- Run | Yrd Mat Mat Mat Traps Triggered 2 | . 2 . . Indirectly . | . . . . Trap Hack Attempts . | . . . . Triggered . | . . . . Disarmed 6 | . 6 . . Reprogrammed . | . . . . Reused . | . . . . Traps Extracted . | . . . . Installed . | . . . . Triggered . | . . . . Machines | -11 -10 -9 -8 ---------- Run | Yrd Mat Mat Mat Machines Disabled . | . . . . Max in Single Turn . | . . . . Machines Repaired . | . . . . Machines Dismantled . | . . . . Machines Sabotaged . | . . . . Overloaded Fab Kills . | . . . . Hacking | -11 -10 -9 -8 --------- Run | Yrd Mat Mat Mat Machines Accessed 5 | . 5 . . Terminals 4 | . 4 . . Fabricators . | . . . . Repair Stations 1 | . 1 . . Recycling Units . | . . . . Scanalyzers . | . . . . Garrison Access . | . . . . Total Hacks 13 | . 13 . . Successful 6 | . 6 . . Failed 7 | . 7 . . Catastrophic 2 | . 2 . . Database Lockouts . | . . . . Manual . | . . . . Terminals 10 | . 10 . . Fabricators . | . . . . Repair Stations 3 | . 3 . . Recycling Units . | . . . . Scanalyzers . | . . . . Garrison Access . | . . . . Terminal Hacks 4 | . 4 . . Locate Traps 1 | . 1 . . Disarm Traps 1 | . 1 . . Dispatch Records 1 | . 1 . . Investigation Status 1 | . 1 . . Fabricator Hacks . | . . . . Repair Station Hacks 2 | . 2 . . Scan Component 1 | . 1 . . Repair 1 | . 1 . . Recycling Unit Hacks . | . . . . Scanalyzer . | . . . . Garrison Access Hacks . | . . . . Unauthorized Hacks . | . . . . Terminals . | . . . . Fabricators . | . . . . Repair Stations . | . . . . Recycling Units . | . . . . Scanalyzers . | . . . . Garrison Access . | . . . . Data Cores Recovered . | . . . . Used . | . . . . Hacking Detections 1 | . 1 . . Full Trace Events 1 | . 1 . . Feedback Events . | . . . . Feedback Blocked . | . . . . Robot Schematics Acquired . | . . . . Robots Built . | . . . . Authchips . | . . . . Time . | . . . . Total Robot Build Rating . | . . . . Part Schematics Acquired . | . . . . Parts Built . | . . . . Authchips . | . . . . Time . | . . . . Total Part Build Rating . | . . . . Parts Repaired 1 | . 1 . . Time 26 | . 26 . . Parts Recycled . | . . . . Recycled Matter . | . . . . Retrieved Matter . | . . . . Retrieved Components . | . . . . Parts Scanalyzed . | . . . . Part Schematics Acquired . | . . . . Parts Damaged . | . . . . Bothacking | -11 -10 -9 -8 ------------ Run | Yrd Mat Mat Mat Used RIF Installer . | . . . . Robots Hacked . | . . . . Non-combat . | . . . . Combat . | . . . . Robot Hacks Applied . | . . . . Relay Couplers Released . | . . . . Fabnet Peak Effective % . | . . . . Robots Rewired . | . . . . Allies Hacked . | . . . . Hacks Repelled . | . . . . Allies | -11 -10 -9 -8 -------- Run | Yrd Mat Mat Mat Total Allies . | . . . . Largest Group . | . . . . Highest-Rated Group . | . . . . Highest-Rated Ally . | . . . . Total Orders . | . . . . Ally Attacks . | . . . . Total Damage . | . . . . Kills . | . . . . Allies Corrupted . | . . . . Allies Melted . | . . . . Intel | -11 -10 -9 -8 ------- Run | Yrd Mat Mat Mat Active Infowar (turns) 179 | . 111 17 51 Terrain 179 | . 111 17 51 Robot Analysis Total . | . . . . Derelict Logs Recovered . | . . . . Drone Launches . | . . . . Drone Recoveries . | . . . . Exploration | -11 -10 -9 -8 ------------- Run | Yrd Mat Mat Mat Turns Passed 974 | 74 479 259 162 Spaces Moved 700 | 60 289 161 190 Core 219 | 18 . 39 162 Treads 58 | . . 30 28 Legs 423 | 42 289 92 . Wheels . | . . . . Hover . | . . . . Flight . | . . . . Fastest Speed 50 | 50 120 50 50 Average Speed 104 | 106 121 110 70 Slowest Speed 190 | 120 190 160 160 Overloaded Moves . | . . . . Propulsion Burnouts . | . . . . Robots Hopped . | . . . . Potential Cave-ins . | . . . . Cave-ins Triggered . | . . . . Exploration Rate (%) 19 | 3 33 20 21 Regions Visited 3 Branch Regions . Pre-discovered Areas . | . . . . Known Exits Taken . | . . . . Unknown Exits Taken 3 | 1 1 1 . Scrap Searched . | . . . . Spaces Dug . | . . . . Terrain Destroyed 3 | . 3 . . Melee . | . . . . Projectile . | . . . . AOE 3 | . 3 . . Terrain Rammed . | . . . . Walls Destroyed . | . . . . Machines Disabled . | . . . . Actions | -11 -10 -9 -8 --------- Run | Yrd Mat Mat Mat Total 867 | 67 370 212 218 Wait 49 | . 35 8 6 Move 697 | 59 288 160 190 Hop . | . . . . Pick Up 12 | 2 6 4 . Fast Attach 18 | 6 2 5 5 Attach 10 | . 2 3 5 Detach 9 | . . 2 7 Swap 3 | . 1 2 . Drop 9 | . . 7 2 Fire 47 | . 30 17 . Melee . | . . . . Ram 6 | . . 4 2 Kick 6 | . 6 . . Crush 1 | . . . 1 Escape Stasis . | . . . . Rewire . | . . . . Trap . | . . . . Miscellaneous . | . . . . Route ------- -11/Scrapyard -10/Materials -9/Materials -8/Materials History --------- Turn | Location | Event 9 | -11/Scrapyard | Discovered new exit (range 16) 75 | -11/Scrapyard | Entered Materials 304 | -10/Materials | Build established: Mutant 421 | -10/Materials | Lost 3 parts (1p1n1w) 506 | -10/Materials | Discovered new exit (range 4) 543 | -10/Materials | Repaired Ion Engine 554 | -10/Materials | Entered another Materials area 554 | -9/Materials | Evolved 2 slots: Propulsion x2 790 | -9/Materials | Released all parts (8) 797 | -9/Materials | Core integrity fell below 50% 805 | -9/Materials | Discovered new exit (range 15) 813 | -9/Materials | Entered another Materials area 813 | -8/Materials | Evolved 2 slots: Power x1, Utility x1 881 | -8/Materials | Released all parts (3) 943 | -8/Materials | Core integrity fell below 50% 951 | -8/Materials | Core integrity fell below 20% 975 | -8/Materials | Destroyed by Y-45 Defender with Beam Rifle Last Messages --------------- 00881_ Slug penetrates Wall. 00886_ Penetrated by Slug. 00895_ Slug penetrates Atomic Centrifuge. 00895_ Atomic Centrifuge disabled. 00903_ Acquired Lgt. EM Pulse Cannon. 00906_ K-01 Serf collects debris. 00909_ Slug penetrates Wall. 00917_ Dropped Terrain Scanner. 00918_ Acquired Minigun. 00924_ Dropped Lgt. Armor Plating. 00942_ Critical hit (Burn: +37). 00948_ Knocked back. 00950_ Slug penetrates Wall. 00950_ Knocked back. 00952_ K-01 Serf collects debris. 00953_ Atomic Centrifuge disabled. 00962_ K-01 Serf collects debris. 00972_ Slug penetrates Wall. 00973_ Slammed into G-47 Trooper. 00974_ K-01 Serf collects debris. Map ----- +----------------------------------------------------+ | ????????# !!! | | ????????# !!! # | | ###?##### !!^ # | | # """ # # | | # """"" # ^ # | | # """"" # ] """ """ # | | # """"" # "" ]^ """ """ # | | # """ # "Y ]] """ """ !# | | # + "" ] """ """ # | | # # + | | # # # | | # !! / # #### | | # !! ############ #??? | | # ! #??????????# #??? | | #########??????????# #??? | | ?????????????#####?# #??? | | ?????????#####"""#?# #### | | ???????###"T"#"T"### # | | ######## #""" | | # # % #"R | | # # #""" | | # # """ "" " #? | | # # """ """ "%" #? | | # # """ """ " ###+ | | # #g b g | | # g@Y | | # #g ! | | # k ##+#+######+### # | | # ## ??# !## ## | | # ## ??#""" ## ##! | | # ## ?#""" ## ###!! | | # ## ?#""" !## #?### | | ######### !! ##""" ## #???? | | ????????# ! ##""" ## H #???? | | ????????# #?? *## #???? | | ????????### ###????### ???? | | ???????????##????????? ???? | | ????????????????????? +??? | | ??????????????????????! ???? | | ?????????????????????? ???? | | ??????????????????????????????? | | ??????????????????????????????? | | ??????????????????????????????? | | ??????????????????????????????? | | ??????????????????????????????? | | ??????????????????????????????? | | ??????????????????????????????? | | ??????????????????????????????? | | ??????????????????????????????? | | ??????????????????????????????? | +----------------------------------------------------+ Best States ------------- Heat Dissipation 31 Energy Generation 15 Energy Capacity 275 Matter Stores 300 Matter Capacity 300 Sight Range 16 Terrain Scan Range 14 Terrain Scan Density 10 Armor Coverage 150 Evasion (%) 55 Targeting Accuracy 6 Recoil Reduction 4 Item Schematics ----------------- None Robot Schematics ------------------ None Fabricated ------------ Nothing Repaired ---------- Ion Engine | 73% | -10/Materials Alien Tech Used ----------------- None Achievements -------------- None Challenges ------------ None Game ------ Seed LayeredHelicalMagmablaster Manual? 0 Play Time 00:14:17 Cumulative 16.9 hours Start 2025.07.14 @ 01:55:01 End 2025.07.14 @ 02:09:30 Sessions 1 Manual Loads 0 Difficulty Rogue Special Mode None Game No. 19 Rogue 19 Adventurer 0 Explorer 0 Win Type - Total 0 Types 0/0/0/0/0/0/0/0/0/0 Lore% 10 Gallery% 13 Achievement% 15 Wizard Run 0 Options --------- Layout 1 ASCII 0 Keyboard 1 Movement Numpad Keybinds 1 Fullscreen 2 Font 32/SmallcapsGlow Map View 50x40 Zoom Use 8% Tactical HUD 1 Map Filters NONE Filters NONE Steam 1 RUN: 32417e6d-f822-491d-baa9-5a55636d1f51